bitfinex/quotes_ETHUSD_20251124
["timestamp","ask_amount","ask_price","bid_price","bid_amount"]
[1763950009117,0.90699264,2857.5,2855.9,0.1]
[1763950009332,0.4005685,2857.4,2854.9,0.4914]
[1763950009536,4.04298764,2858.1,2856.4,0.1]
[1763950009720,0.1337,2857.3,2854.9,0.4914]
[1763950009908,0.4775,2857.2,2855.1,5.983571]
[1763950010108,0.4775,2857.2,2856.1,0.1]
[1763950010314,0.4775,2857.2,2855.0,0.4914]
[1763950010559,0.4775,2857.2,2856.4,0.1]
[1763950011115,0.1337,2857.3,2856.9,0.1]
[1763950011419,0.1337,2857.3,2855.0,10.50788039]
[1763950011420,0.4775,2857.3,2857.2,0.1]
[1763950011755,0.4775,2857.3,2855.2,0.90699264]
[1763950011942,0.4775,2857.3,2855.7,0.1]
[1763950012140,0.4775,2857.3,2855.1,0.4914]
[1763950012141,0.4775,2857.3,2856.0,0.1]
[1763950012451,0.4275,2857.3,2856.6,0.1]
[1763950012953,0.4275,2857.3,2857.0,0.1]
[1763950013175,0.4275,2857.3,2855.6,0.4914]
[1763950013472,0.4275,2857.3,2856.5,0.1]
[1763950013770,0.4275,2857.3,2857.2,0.1]
[1763950014468,0.1929,2857.9,2857.4,0.1]
[1763950014672,0.1929,2857.9,2857.6,0.1]
[1763950014985,0.4775,2857.8,2856.1,0.1818]
[1763950015188,0.4775,2857.8,2856.9,0.1]
[1763950015343,0.4775,2857.8,2857.4,0.1]
[1763950016037,0.4775,2857.8,2854.8,0.184]
[1763950016038,0.4775,2857.8,2857.0,0.1]
[1763950016238,0.4775,2857.8,2856.7,0.1]
[1763950016548,0.4775,2857.8,2855.8,0.6732]
[1763950016748,0.4775,2857.8,2857.1,0.1]
[1763950017076,0.4775,2857.8,2856.8,0.1]
[1763950017245,0.4775,2857.8,2855.9,0.90699264]
[1763950017451,0.4775,2857.8,2856.9,0.1]
[1763950018047,0.4775,2857.8,2857.0,0.1]
[1763950018248,0.4775,2857.8,2855.9,0.4914]
[1763950018461,0.4775,2857.8,2856.7,0.1]
[1763950018638,0.4775,2857.8,2854.8,0.184]
[1763950018639,0.1929,2856.0,2854.8,0.184]
[1763950018838,0.1929,2856.0,2855.2,0.1]
[1763950019038,0.4775,2855.9,2854.9,0.1]
[1763950019278,0.1929,2856.0,2854.9,0.1]
[1763950019581,0.1929,2856.0,2855.5,0.1]
[1763950019582,0.4775,2855.9,2855.5,0.1]
[1763950019778,0.4775,2855.9,2855.7,0.1]
[1763950020169,0.47497957,2855.9,2855.7,0.1]
[1763950020381,0.47497957,2855.9,2854.5,0.4914]
[1763950020595,0.1929,2856.0,2855.6,0.1]
[1763950020796,0.1929,2856.0,2854.5,0.49018582]
[1763950020797,0.1929,2857.9,2855.7,0.4914]
[1763950020999,0.1929,2857.9,2855.8,0.94200909]
[1763950021199,0.00568503,2859.0,2856.4,0.90699264]
[1763950021511,0.00568503,2859.0,2858.3,0.1]
[1763950021819,2.48689,2858.3,2856.1,0.1818]
[1763950022005,4.37944451,2858.9,2855.1,2.791651]
[1763950022006,0.90699264,2858.0,2855.1,2.791651]
[1763950022309,6.24452831,2858.0,2855.1,3.50244251]
[1763950022484,4.37944451,2857.6,2855.2,0.4914]
[1763950022674,5.046631,2857.4,2854.9,0.1818]
[1763950023003,0.90699264,2857.5,2854.9,0.1818]
[1763950023004,3.20397,2856.7,2855.6,0.1]
[1763950023207,0.4775,2857.4,2856.0,0.1]
[1763950023398,1.38449264,2857.9,2856.4,0.1]
[1763950023606,2.419842,2857.8,2856.4,0.1]
[1763950023783,0.4775,2857.8,2856.4,0.1]
[1763950024121,0.90699264,2857.5,2855.5,0.001]
[1763950024297,8.527566,2857.6,2855.5,0.001]
[1763950024298,0.90699264,2857.6,2856.3,0.1]
[1763950024498,0.4775,2857.5,2856.3,0.1]
[1763950025211,0.4775,2857.5,2856.7,0.1]
[1763950025584,0.4775,2857.5,2856.2,0.1]
[1763950025785,0.4775,2857.5,2855.6,0.4914]
[1763950025986,0.4775,2857.5,2856.6,0.1]
[1763950026199,0.4775,2857.5,2855.5,0.001]
[1763950026200,1.38449264,2857.5,2855.5,0.001]
[1763950026386,0.57639372,2857.4,2855.9,0.1]
[1763950026713,1.04199372,2857.4,2856.3,0.1]
[1763950026875,1.04199372,2857.4,2855.6,0.4708]
[1763950026876,0.4656,2857.4,2855.6,0.4708]
[1763950027079,0.4656,2857.3,2856.7,0.1]
[1763950027327,0.4656,2857.3,2855.6,0.4708]
[1763950027618,0.1826,2857.2,2856.3,0.1]
[1763950027778,0.1826,2857.2,2855.5,0.50682013]
[1763950028122,0.4656,2857.1,2856.7,0.1]
[1763950028325,0.4656,2857.1,2855.5,0.4718]
[1763950028326,0.4656,2857.1,2855.5,0.001]
[1763950028511,0.4656,2857.1,2856.1,0.1]
[1763950028711,0.4656,2857.1,2855.5,0.001]
[1763950028899,0.4656,2857.1,2856.5,0.1]
[1763950029822,0.4656,2857.1,2856.1,0.1]
[1763950030326,0.4656,2857.8,2856.2,0.1931]
[1763950030526,0.4656,2857.8,2857.5,0.1]
[1763950030728,0.4656,2857.8,2856.2,1.10009264]
[1763950030729,0.4656,2857.8,2856.3,0.4708]
[1763950030905,0.90699264,2857.6,2855.5,0.001]
[1763950031251,0.84138296,2857.5,2855.5,0.001]
[1763950031462,5.28643715,2857.1,2855.5,0.001]
[1763950031747,0.1003,2855.6,2855.5,0.001]
[1763950032095,0.5659,2857.4,2855.5,0.001]
[1763950032096,0.1826,2856.3,2855.5,0.001]
[1763950032296,0.4656,2857.3,2855.5,0.001]
[1763950032492,0.90699264,2857.0,2855.5,0.001]
[1763950032717,1.04857296,2856.9,2855.5,0.001]
[1763950032904,0.4656,2856.9,2855.5,0.001]
[1763950033108,0.4656,2856.8,2855.7,0.1]
[1763950033310,0.4656,2856.8,2855.5,0.001]
[1763950033498,0.4656,2856.8,2855.9,0.1]
[1763950034036,0.1826,2856.0,2855.5,0.101]
[1763950034238,0.1826,2856.0,2855.5,0.001]
[1763950034442,0.4656,2855.9,2855.5,0.001]
[1763950035296,0.4656,2855.9,2854.5,0.1]
[1763950035297,1.37259264,2855.9,2854.5,0.1]
[1763950035498,0.50566357,2855.8,2854.9,0.1]
[1763950035712,0.4656,2855.7,2853.9,0.4708]
[1763950035952,0.4656,2855.7,2854.2,0.1]
[1763950036116,0.4656,2855.7,2854.4,0.1]
[1763950036452,3.96741213,2855.7,2853.7,0.184]
[1763950036746,0.4656,2855.7,2854.2,0.1]
[1763950037045,0.4656,2855.6,2854.3,0.1]
[1763950037212,0.4656,2855.6,2854.7,0.1]
[1763950037547,0.1826,2855.5,2854.7,0.1]
[1763950037917,0.4656,2855.4,2853.8,0.4708]
[1763950038116,0.4656,2855.4,2854.5,0.1]
[1763950038372,0.1826,2855.5,2854.5,0.1]
[1763950038510,0.1826,2855.5,2854.9,0.1]
[1763950038710,0.1826,2855.5,2855.1,0.1]
[1763950038949,0.1826,2855.5,2854.8,0.1]
[1763950039148,0.6482,2855.5,2854.4,0.1]
[1763950039463,0.6482,2855.5,2854.5,0.1]
[1763950039760,0.4656,2855.4,2854.4,0.1]
[1763950039908,0.4656,2855.4,2853.7,0.184]
[1763950039909,0.4656,2855.4,2854.2,0.1]
[1763950040453,1.37259264,2855.4,2854.2,0.1]
[1763950040617,0.50572517,2855.3,2853.7,0.184]
[1763950040824,0.4656,2855.3,2854.6,0.1]
[1763950041663,0.4656,2855.3,2853.7,0.6548]
[1763950041664,0.4656,2855.3,2854.3,0.1]
[1763950041953,0.4656,2855.3,2854.5,0.001]
[1763950042258,0.4656,2855.3,2854.6,0.1]
[1763950042423,0.4656,2855.3,2854.9,0.1]
[1763950042626,0.4656,2855.3,2854.7,0.1]
[1763950042824,0.4656,2855.3,2854.5,0.001]
[1763950043351,0.4656,2855.3,2854.7,0.1]
[1763950043521,0.1826,2855.5,2855.0,0.1]
[1763950043858,5.581002,2855.4,2854.5,0.001]
[1763950044065,4.37944451,2854.9,2852.6,0.6639]
[1763950044228,0.4656,2855.3,2853.8,0.1]
[1763950044427,0.4656,2855.2,2853.5,0.1931]
[1763950044751,0.4656,2855.2,2854.2,0.1]
[1763950044951,0.4656,2855.2,2853.9,0.1]
[1763950045452,0.4656,2855.2,2853.5,0.1931]
[1763950045660,0.4656,2855.2,2854.2,0.1]
[1763950046260,0.1826,2854.3,2852.6,0.1931]
[1763950046562,0.1826,2854.3,2853.8,0.1]
[1763950046918,0.4656,2854.2,2852.9,0.4708]
[1763950047255,0.4656,2854.2,2853.5,0.1]
[1763950047418,0.4656,2854.2,2853.2,0.1]
[1763950048052,0.1826,2854.6,2853.6,0.1]
[1763950048355,0.1826,2854.6,2853.2,0.4708]
[1763950048356,3.96888048,2854.5,2853.2,0.1]
[1763950048568,0.41514805,2854.4,2853.2,0.1]
[1763950048858,0.4656,2854.4,2852.9,0.1]
[1763950049151,0.90699264,2854.2,2852.6,0.1931]
[1763950049354,0.4656,2854.4,2852.6,0.1931]
[1763950049556,0.4656,2854.4,2853.2,0.1]
[1763950050053,0.4656,2854.4,2852.7,0.4708]
[1763950050255,0.4656,2854.4,2853.0,0.1]
[1763950050439,0.90699264,2854.2,2853.0,0.1]
[1763950050658,0.90699264,2854.2,2852.2,0.4708]
[1763950050862,0.4656,2854.1,2852.2,0.4708]
[1763950051295,0.90699264,2853.9,2852.2,0.1]
[1763950051571,2.325637,2854.0,2851.7,0.04]
[1763950051740,0.4656,2853.9,2852.3,0.1]
[1763950051936,0.4656,2853.9,2851.9,0.1]
[1763950051937,0.90699264,2853.5,2851.9,0.1]
[1763950052163,0.52864372,2853.4,2851.4,0.4708]
[1763950052438,7.91666598,2853.2,2851.6,0.1]
[1763950052666,0.1826,2853.3,2851.9,0.1]
[1763950052887,0.6482,2853.3,2851.9,0.1]
[1763950053183,0.6482,2853.3,2851.6,0.4708]
[1763950053184,0.90699264,2853.2,2851.6,0.4708]
[1763950053340,7.6576555,2853.3,2851.2,0.1931]
[1763950053341,0.4656,2853.1,2851.9,0.1]
[1763950053544,0.4656,2853.1,2852.3,0.1]
[1763950053741,0.1826,2853.3,2852.6,0.1]
[1763950053946,0.1826,2853.3,2851.7,0.4708]
[1763950054176,0.1826,2853.3,2852.7,0.1]
[1763950055082,0.6482,2853.3,2852.3,0.1]
[1763950055247,0.6482,2853.3,2851.7,0.0350668]
[1763950055448,0.6482,2853.3,2852.7,0.1]
[1763950056101,3.5039849,2853.9,2852.7,0.4708]
[1763950056102,0.4656,2853.9,2852.7,0.4708]
[1763950056305,0.4656,2853.9,2853.3,0.1]
[1763950056448,0.1221,2854.0,2853.3,0.1]
[1763950056652,0.1064,2853.9,2853.5,0.1]
[1763950057009,0.1064,2853.9,2852.3,1.10009264]
[1763950057010,0.90699264,2853.5,2852.1,0.6394]
[1763950057164,0.65132134,2853.4,2852.1,0.1818]
[1763950057350,1.13242134,2853.4,2852.1,0.1818]
[1763950057691,0.51675997,2853.3,2852.1,0.1818]
[1763950057898,0.4811,2853.6,2852.2,0.1]
[1763950058100,0.4811,2853.6,2852.1,0.6394]
[1763950058317,0.4811,2853.6,2853.0,0.1]
[1763950058859,0.4811,2853.6,2852.2,0.4576]
[1763950059206,0.03565997,2853.5,2852.4,0.1]
[1763950059421,0.94265261,2853.5,2852.4,0.1]
[1763950059617,0.0984,2852.5,2851.6,0.1]
[1763950060104,0.0984,2852.5,2850.9,0.1931]
[1763950060105,0.1826,2851.7,2850.9,0.1931]
[1763950060262,0.1826,2851.7,2851.1,0.1]
[1763950060460,0.32544817,2852.3,2850.9,0.1931]
[1763950060701,0.32544817,2852.3,2851.3,0.1]
[1763950060865,0.0984,2852.5,2851.9,0.1]
[1763950061061,0.32540047,2852.7,2851.4,0.21687049]
[1763950061265,0.52847035,2853.4,2852.4,0.001]
[1763950061266,0.4811,2853.2,2852.4,0.001]
[1763950061463,0.52391205,2853.1,2852.4,0.001]
[1763950061811,0.03765997,2853.6,2852.4,0.001]
[1763950061812,0.002,2853.6,2852.6,0.1]
[1763950062020,0.002,2853.6,2853.0,0.1]
[1763950062227,0.002,2853.6,2853.3,0.1]
[1763950062526,0.002,2853.6,2852.6,0.4576]
[1763950062816,0.002,2853.6,2852.8,0.1]
[1763950063821,0.002,2853.6,2852.4,0.001]
[1763950063822,0.1979,2852.9,2852.4,0.001]
[1763950064182,0.4922,2852.8,2852.4,0.001]
[1763950064381,0.32615562,2852.7,2852.4,0.001]
[1763950064804,0.4922,2852.6,2852.4,0.001]
[1763950065118,0.1979,2852.9,2852.4,0.001]
[1763950065292,0.03565997,2852.8,2852.4,0.001]
[1763950065479,0.6901,2852.9,2852.4,0.001]
[1763950065680,0.81837065,2852.8,2852.4,0.001]
[1763950065896,0.4922,2852.8,2852.4,0.001]
[1763950066194,0.4922,2852.7,2852.4,0.001]
[1763950066524,0.32623818,2852.6,2852.4,0.001]
[1763950067005,0.4922,2852.5,2852.4,0.001]
[1763950067207,0.6901,2852.9,2852.4,0.001]
[1763950067393,0.32626163,2852.8,2852.4,0.001]
[1763950067595,0.90699264,2852.6,2852.4,0.001]
[1763950067810,0.75169752,2852.5,2852.4,0.001]
[1763950068124,0.3619216,2852.5,2852.4,0.001]
[1763950068308,0.8541216,2852.5,2852.4,0.001]
[1763950068712,3.92270924,2852.5,2852.4,0.001]
[1763950068896,7.42840599,2852.5,2852.4,0.001]
[1763950069100,0.90699264,2852.4,2850.8,0.499]
[1763950069286,0.3619216,2852.3,2850.8,0.499]
[1763950069485,0.32626163,2852.3,2851.5,0.1]
[1763950069691,0.3619216,2852.2,2851.2,0.1]
[1763950070112,0.4922,2852.1,2851.2,0.1]
[1763950070315,0.32626163,2852.0,2850.9,0.1]
[1763950070520,0.32626163,2852.0,2851.2,0.1]
[1763950071022,0.52785997,2852.6,2851.5,0.1]
[1763950071023,0.32626163,2852.5,2851.5,0.1]
[1763950071330,1.23325427,2852.4,2851.5,0.1]
[1763950071495,0.80015809,2852.3,2851.5,0.1]
[1763950071693,0.32626163,2852.2,2851.3,0.499]
[1763950071907,0.3619216,2852.1,2850.6,0.499]
[1763950072109,0.32626163,2852.0,2850.9,0.1]
[1763950072293,0.32626163,2851.9,2850.9,0.1]
[1763950072520,0.3619216,2852.2,2851.1,0.1]
[1763950072725,0.32626163,2852.1,2851.1,0.1]
[1763950072921,0.32626163,2852.0,2851.1,0.1]
[1763950073241,0.32626163,2851.9,2850.9,0.1]
[1763950073428,0.32626163,2851.8,2850.9,0.1]
[1763950073596,0.03565997,2851.8,2851.1,0.1]
[1763950073799,0.32647241,2851.9,2851.1,0.1]
[1763950074025,0.36213238,2851.8,2851.0,0.1]
[1763950074330,0.03565997,2851.8,2851.0,0.1]
[1763950074496,0.36213238,2851.8,2850.6,0.499]
[1763950074693,0.32647241,2851.8,2850.8,0.1]
[1763950074995,0.32647241,2851.8,2851.0,0.1]
[1763950075195,0.32647241,2851.7,2851.0,0.1]
[1763950075422,0.81867241,2852.0,2850.7,0.1]
[1763950075742,0.32647241,2851.9,2851.1,0.1]
[1763950075896,0.32647241,2851.9,2851.5,0.1]
[1763950076093,0.32647241,2852.3,2851.5,0.1]
[1763950076307,0.32647241,2852.2,2851.5,0.1]
[1763950076509,0.32647241,2852.1,2851.5,0.1]
[1763950076691,0.32647241,2852.1,2851.3,0.499]
[1763950076897,0.32647241,2852.3,2851.0,0.1]
[1763950077135,0.32647241,2852.2,2851.3,0.1]
[1763950077334,0.32647241,2852.1,2851.3,0.1]
[1763950077566,0.32647241,2852.0,2851.3,0.1]
[1763950077780,0.32647241,2851.9,2851.3,0.1]
[1763950077963,0.32647241,2852.2,2851.3,0.1]
[1763950078161,0.32647241,2852.1,2851.3,0.1]
[1763950078367,0.36213238,2852.0,2850.7,0.1]
[1763950078574,0.32647241,2851.9,2851.1,0.1]
[1763950078779,0.32647241,2851.8,2851.1,0.1]
[1763950078965,0.32647241,2851.7,2851.1,0.1]
[1763950079170,0.32647241,2851.6,2851.1,0.1]
[1763950079475,0.32712091,2851.5,2851.1,0.1]
[1763950079674,0.4922,2852.0,2851.1,0.1]
[1763950079853,0.32711995,2851.9,2851.1,0.1]
[1763950080054,0.32711995,2851.8,2851.1,0.1]
[1763950080256,0.32711995,2851.7,2851.1,0.1]
[1763950080438,0.32711995,2851.6,2851.0,0.001]
[1763950080798,0.90699264,2852.1,2851.0,0.001]
[1763950080799,0.85497992,2851.5,2851.0,0.001]
[1763950080978,2.105347,2851.2,2851.0,0.001]
[1763950081163,2.105347,2851.2,2850.7,0.001]
[1763950081164,4.18004264,2851.0,2850.7,0.001]
[1763950081476,0.32711995,2850.9,2850.7,0.001]
[1763950081794,0.32711995,2850.8,2850.7,0.001]
[1763950081943,0.81931995,2850.8,2850.7,0.001]
[1763950082594,6.29974959,2850.8,2850.7,0.001]
[1763950082895,2.45055281,2850.8,2850.7,0.001]
[1763950083042,1.23411259,2850.8,2850.7,0.001]
[1763950083242,1.72631259,2850.8,2850.7,0.001]
[1763950083445,0.002,2852.4,2850.7,0.5]
[1763950083743,0.002,2852.4,2851.1,0.1793]
[1763950083939,0.002,2852.4,2852.3,0.1885]
[1763950084140,0.002,2852.4,2852.3,0.2885]
[1763950084447,0.002,2852.4,2852.0,0.1885]
[1763950084673,0.002,2852.4,2852.1,0.499]
[1763950084879,0.002,2852.4,2852.3,0.1]
[1763950085205,0.002,2852.4,2852.0,0.1885]
[1763950085206,0.002,2852.4,2852.2,0.1]
[1763950085575,0.002,2852.4,2852.3,0.599]
[1763950086609,0.002,2852.4,2852.3,0.499]
[1763950086813,0.002,2852.4,2852.3,0.599]
[1763950087411,0.002,2852.4,2852.3,1.00949718]
[1763950088095,0.002,2852.4,2852.3,0.599]
[1763950091617,0.002,2852.4,2852.3,4.10494257]
[1763950091819,0.002,2852.4,2852.3,0.599]
[1763950092737,0.002,2852.4,2852.3,4.00494257]
[1763950092940,0.002,2852.4,2852.3,4.10494257]
[1763950093241,0.002,2852.4,2852.3,4.86604369]
[1763950093417,0.002,2852.4,2852.3,1.36010112]
[1763950093618,0.002,2852.4,2852.3,4.10494257]
[1763950093988,0.002,2852.4,2852.3,0.599]
[1763950094604,0.002,2852.4,2852.3,4.10494257]
[1763950095220,0.002,2852.4,2852.3,0.599]
[1763950095926,0.002,2852.4,2852.3,4.10494257]
[1763950096226,0.002,2852.4,2852.3,4.86605557]
[1763950097022,0.002,2852.4,2852.3,1.360113]
[1763950097222,0.002,2852.4,2852.3,0.599]
[1763950098330,0.002,2852.4,2852.3,4.10494257]
[1763950099203,0.002,2852.4,2852.3,0.599]
[1763950102548,0.002,2852.4,2852.3,4.10494257]
[1763950103049,0.002,2852.4,2852.3,0.599]
[1763950103218,0.002,2852.4,2852.3,1.00950315]
[1763950103415,0.002,2852.4,2852.3,4.51544572]
[1763950103816,0.002,2852.4,2852.3,1.00950315]
[1763950104228,0.002,2852.4,2852.3,0.599]
[1763950104426,0.002,2852.4,2852.3,1.0729]
[1763950107484,0.002,2852.4,2852.3,15.17304779]
[1763950107899,0.002,2852.4,2852.3,7.26011779]
[1763950108105,0.002,2852.4,2852.3,1.97989264]
[1763950108249,0.002,2852.4,2852.3,5.48583521]
[1763950108452,0.002,2852.4,2852.3,17.90937763]
[1763950108764,0.1732,2853.9,2853.8,0.1]
[1763950108957,1.0344,2853.9,2853.0,0.1]
[1763950109160,1.0344,2853.9,2852.4,1.60829264]
[1763950109447,0.4678,2853.8,2853.1,0.1]
[1763950109958,0.4678,2853.8,2852.4,1.10002633]
[1763950109959,0.4678,2853.8,2853.4,0.1]
[1763950110776,0.4678,2853.8,2852.7,0.4983545]
[1763950110957,0.4678,2853.8,2853.7,0.1]
[1763950111363,0.8619,2853.8,2853.7,0.1]
[1763950113086,0.8619,2853.8,2853.3,0.1]
[1763950113283,0.4671,2853.4,2853.3,0.1]
[1763950113580,0.1732,2853.9,2852.7,3.96871238]
[1763950113749,0.1732,2853.9,2853.6,0.1]
[1763950113949,0.11,2853.8,2853.6,0.1]
[1763950114181,0.3934,2853.7,2852.8,0.86017124]
[1763950114481,0.89685997,2853.7,2853.0,0.1]
[1763950114848,0.0047,2853.1,2853.0,0.1]
[1763950115184,0.0047,2853.1,2852.7,0.1]
[1763950115385,0.4686,2853.0,2852.7,0.1]
[1763950115887,0.158,2852.9,2852.7,0.1]
[1763950116575,0.4516,2853.4,2852.2,3.50605205]
[1763950116783,0.4516,2853.4,2853.1,0.1]
[1763950117188,0.4628,2853.2,2853.1,0.1]
[1763950117487,0.4536,2853.7,2853.5,0.1]
[1763950117685,0.002,2853.7,2853.6,0.1]
[1763950118002,0.9164,2853.7,2853.6,0.1]
[1763950118991,0.9164,2853.7,2852.4,0.1]
[1763950119293,0.9164,2853.7,2852.9,0.1]
[1763950119294,0.4516,2853.6,2852.9,0.1]
[1763950119807,0.4628,2853.0,2852.9,0.1]
[1763950119992,0.4516,2853.6,2852.9,0.1]
[1763950120297,0.4516,2853.5,2852.9,0.1]
[1763950120466,0.4516,2853.5,2853.2,0.1]
[1763950121174,0.4628,2853.3,2853.2,0.1]
[1763950122064,0.9144,2853.3,2853.2,0.1]
[1763950122897,0.9144,2853.3,2853.0,0.1]
[1763950123671,0.4517,2853.1,2853.0,0.1]
[1763950124267,0.9033,2853.1,2853.0,0.1]
[1763950124698,0.9033,2853.1,2852.7,0.1]
[1763950124999,0.9033,2853.1,2852.9,0.1]
[1763950125365,0.5122,2853.0,2852.9,0.1]
[1763950126620,0.5122,2853.0,2852.7,0.1]
[1763950126827,0.1923,2852.9,2852.7,0.1]
[1763950126986,0.3944,2852.8,2852.5,0.1]
[1763950127314,0.4965,2853.2,2852.9,0.1]
[1763950127718,0.41,2853.0,2852.9,0.1]
[1763950127888,0.41,2853.0,2852.1,0.1846]
[1763950128088,0.6888,2852.9,2852.4,0.1]
[1763950128478,0.6888,2852.9,2852.1,0.1846]
[1763950128479,0.4965,2852.8,2852.1,0.1846]
[1763950128811,0.4965,2852.8,2852.6,0.1]
[1763950128997,0.1923,2852.9,2852.7,0.1]
[1763950129598,0.6888,2852.9,2852.1,0.6435]
[1763950129775,0.41,2852.8,2852.6,0.1]
[1763950129977,0.41,2852.8,2851.2,3.50721461]
[1763950129978,0.9057,2852.8,2852.2,0.1]
[1763950130178,0.9057,2852.8,2851.8,0.1]
[1763950130378,0.4957,2852.7,2851.3,0.4589]
[1763950130578,0.4957,2852.7,2852.1,0.1]
[1763950131092,0.4108,2852.2,2851.5,0.1]
[1763950131290,0.9056,2852.2,2851.1,0.6382]
[1763950131524,0.9056,2852.2,2851.2,0.4589]
[1763950131694,0.9056,2852.2,2851.7,0.1]
[1763950132077,0.4948,2852.1,2851.7,0.1]
[1763950132599,0.4948,2852.1,2851.8,0.1]
[1763950133825,0.5965,2851.9,2851.6,0.1]
[1763950134018,0.0049,2851.7,2851.6,0.1]
[1763950134230,0.0049,2851.7,2851.3,0.1]
[1763950134388,0.4965,2851.6,2851.3,0.1]
[1763950134589,0.4028,2851.4,2851.1,0.1]
[1763950135137,0.0089,2851.2,2851.1,0.1]
[1763950135316,0.0089,2851.2,2850.8,0.001]
[1763950135488,0.5681,2850.9,2850.8,0.001]
[1763950135987,1.0614,2850.9,2850.8,0.001]
[1763950136190,0.4933,2851.3,2850.8,0.001]
[1763950136389,0.377,2850.9,2850.8,0.001]
[1763950136784,0.8691,2850.9,2850.8,0.001]
[1763950140624,1.32599565,2850.9,2850.8,0.001]
[1763950140807,0.8691,2850.9,2850.8,0.001]
[1763950141028,0.1923,2851.5,2850.8,0.4629]
[1763950141228,0.4965,2852.5,2850.9,0.4589]
[1763950141447,0.4965,2852.5,2851.4,0.6544]
[1763950141750,0.4965,2852.5,2851.8,0.1]
[1763950141914,0.4965,2852.5,2851.6,0.1]
[1763950141915,0.1923,2851.9,2851.6,0.1]
[1763950142115,0.4965,2852.5,2851.1,0.4589]
[1763950142316,0.1923,2851.8,2851.2,0.1]
[1763950142539,0.03565997,2851.7,2851.2,0.1]
[1763950142841,3.50732809,2852.8,2850.8,0.001]
[1763950142842,17.50138445,2856.9,2854.7,30.0]
[1763950143046,0.19798503,2859.0,2856.8,0.1923]
[1763950143253,0.4965,2858.9,2857.6,0.1]
[1763950143534,0.9162985,2858.9,2857.8,0.1]
[1763950143852,0.9162985,2858.9,2857.2,0.89184093]
[1763950143853,0.9162985,2858.9,2858.0,0.1]
[1763950144150,0.4965,2858.8,2858.4,0.1]
[1763950144352,0.4965,2858.8,2858.4,0.09967]
[1763950144713,0.4965,2858.8,2857.7,0.89184093]
[1763950144714,0.4965,2858.8,2857.9,0.89184093]
[1763950144914,0.19798503,2859.0,2858.0,3.19737018]
[1763950145117,0.00568503,2859.0,2858.9,0.09967]
[1763950145755,0.50218503,2859.0,2858.8,0.09967]
[1763950145954,0.50218503,2859.0,2857.9,0.20720941]
[1763950146180,0.4502185,2858.9,2858.2,0.09967]
[1763950146462,0.4502185,2858.9,2858.3,0.1]
[1763950146676,0.6686,2858.8,2858.1,0.05]
[1763950146820,0.6686,2858.8,2858.4,0.1]
[1763950147341,0.4764,2858.7,2858.4,0.1]
[1763950147658,0.1922,2858.8,2858.6,0.1]
[1763950148028,0.6686,2858.8,2858.6,0.1]
[1763950148558,0.4764,2858.7,2858.6,0.1]
[1763950148766,0.4764,2858.7,2856.8,0.1923]
[1763950148960,0.1922,2857.5,2857.0,0.1]
[1763950149264,0.1922,2857.5,2857.3,0.1]
[1763950149429,0.4764,2857.4,2857.3,0.1]
[1763950149632,0.1922,2857.5,2857.4,0.1]
[1763950150266,0.6686,2857.5,2857.2,0.1]
[1763950150475,0.6686,2857.5,2856.4,0.1923]
[1763950150626,0.6686,2857.5,2857.3,0.1]
[1763950150823,0.4764,2857.4,2856.4,0.1923]
[1763950151022,0.4764,2857.4,2857.1,0.1]
[1763950151465,0.1922,2857.5,2856.4,0.56163141]
[1763950151466,0.1922,2857.5,2857.4,0.1]
[1763950151833,0.6686,2857.5,2857.4,0.1]
[1763950152133,0.6686,2857.5,2857.0,0.1]
[1763950152332,0.4764,2857.4,2857.0,0.1]
[1763950153368,0.4764,2857.4,2856.7,0.1]
[1763950153532,0.1922,2857.5,2857.2,0.1]
[1763950153945,0.4764,2857.4,2857.2,0.1]
[1763950154374,0.1922,2857.5,2857.3,0.1]
[1763950154593,0.1922,2857.7,2857.6,0.1]
[1763950154763,0.6686,2857.7,2857.2,0.1]
[1763950154936,0.6686,2857.7,2857.4,0.1]
[1763950155137,0.4764,2857.6,2857.4,0.1]
[1763950155462,0.4764,2858.0,2857.4,0.1]
[1763950155662,0.1922,2857.9,2857.6,0.1]
[1763950155836,0.1922,2857.9,2857.4,0.1]
[1763950156051,0.4764,2857.8,2857.4,0.1]
[1763950157157,0.1922,2857.9,2857.8,0.1]
[1763950157669,0.4764,2858.2,2858.1,0.1]
[1763950158053,0.4764,2858.6,2858.2,0.1]
[1763950158258,0.4764,2858.6,2858.4,0.1]
[1763950158566,0.4764,2858.6,2857.6,0.1]
[1763950158771,0.4764,2858.6,2858.1,0.1]
[1763950158997,0.1942,2858.8,2858.6,0.1]
[1763950159157,0.6706,2858.8,2857.5,0.1923]
[1763950159497,0.6706,2858.8,2858.7,0.1]
[1763950160058,0.002,2858.8,2858.7,0.1]
[1763950162663,0.002,2858.8,2858.6,0.1]
[1763950163113,0.002,2858.8,2858.7,0.1]